bitfinex-derivatives/quotes_ETHF0:USTF0_20250621
["timestamp","ask_amount","ask_price","bid_price","bid_amount"]
[1750520200238,0.82734,2417.0,2416.8,4.68447]
[1750520200539,0.82734,2416.9,2416.8,3.8571]
[1750520201439,2.06846,2416.8,2415.6,6.2548835]
[1750520201638,3.2078,2416.1,2415.6,3.2078]
[1750520201942,0.82774,2415.8,2415.6,3.2078]
[1750520202330,2.0533,2416.0,2415.7,6.576]
[1750520202532,3.2078,2416.1,2415.8,0.82769]
[1750520202735,0.82763,2416.1,2415.9,5.80173268]
[1750520203032,0.82763,2416.1,2416.0,6.576]
[1750520203426,0.82765,2416.0,2415.9,6.576]
[1750520203631,0.82764,2416.1,2415.9,6.576]
[1750520203832,0.82764,2416.1,2415.8,8.01184268]
[1750520204135,3.2078,2416.1,2415.5,0.7196438]
[1750520204337,3.30313268,2416.0,2415.6,6.577]
[1750520204534,0.82776,2415.7,2415.6,6.577]
[1750520204937,0.82774,2415.8,2415.6,6.577]
[1750520205140,3.2078,2416.1,2415.7,0.82776]
[1750520205435,0.82767,2416.0,2415.8,3.2078]
[1750520205637,2.59393268,2415.9,2415.5,3.8554]
[1750520205938,0.82789,2415.3,2415.2,9.7848]
[1750520206153,0.82789,2415.3,2415.2,6.577]
[1750520206740,0.82787,2415.4,2415.2,6.578]
[1750520208232,0.82787,2415.4,2415.2,7.40591]
[1750520208429,0.82789,2415.3,2415.2,6.578]
[1750520208833,2.59393268,2415.6,2415.2,6.578]
[1750520208834,0.82788,2415.4,2415.2,6.578]
[1750520209036,0.82784,2415.5,2415.2,6.578]
[1750520209249,0.82787,2415.4,2415.2,0.82791]
[1750520209441,0.82787,2415.4,2415.2,7.40591]
[1750520209738,0.82787,2415.4,2415.2,7.40691]
[1750520210132,7.15463268,2415.8,2415.2,7.40691]
[1750520210133,0.82789,2415.3,2415.2,6.579]
[1750520210333,0.82788,2415.4,2415.2,7.40693]
[1750520210942,0.82784,2415.5,2415.3,0.82789]
[1750520211144,0.82786,2415.4,2415.3,0.82789]
[1750520211442,0.82786,2415.4,2415.2,7.4069]
[1750520211634,1.3945,2415.7,2415.2,7.4069]
[1750520211832,0.82789,2415.3,2415.2,6.579]
[1750520213836,0.82793,2415.2,2415.1,0.6991]
[1750520214053,0.82793,2415.2,2415.1,7.3391]
[1750520214732,0.82793,2415.2,2415.1,0.6991]
[1750520215843,0.82793,2415.2,2415.1,1.52704]
[1750520216344,1.50051,2415.3,2415.1,1.52704]
[1750520216534,0.82793,2415.2,2415.1,0.6991]
[1750520216731,0.82793,2415.2,2415.1,1.52706]
[1750520217633,0.82793,2415.2,2415.1,0.6991]
[1750520218838,0.82796,2415.1,2415.0,0.82798]
[1750520219040,0.82796,2415.2,2415.1,0.82796]
[1750520219747,0.82797,2415.1,2415.0,0.82797]
[1750520220445,0.82795,2415.2,2415.1,0.82795]
[1750520220839,0.6726,2415.3,2415.0,1.3349]
[1750520221042,0.82796,2415.1,2415.0,0.82798]
[1750520221241,0.828,2415.0,2414.9,7.46901]
[1750520221444,0.82798,2415.1,2415.0,0.82799]
[1750520221949,0.828,2415.0,2414.9,7.46901]
[1750520222141,3.26653268,2415.3,2414.9,6.641]
[1750520222339,4.58393268,2415.3,2414.9,6.641]
[1750520222548,0.82796,2415.2,2415.1,0.82795]
[1750520223445,0.828,2415.1,2415.0,0.82798]
[1750520223941,2.81792,2415.3,2415.2,0.82793]
[1750520224139,1.50049,2415.3,2415.2,0.82793]
[1750520224343,1.50049,2415.3,2415.1,0.82795]
[1750520224344,0.82796,2415.2,2415.1,0.82795]
[1750520224551,0.82792,2415.3,2415.2,0.82793]
[1750520224752,0.82788,2415.4,2415.3,0.82787]
[1750520225360,0.82788,2415.4,2415.0,1.314]
[1750520225361,3.2078,2415.5,2415.4,0.82786]
[1750520225854,4.03562,2415.5,2415.4,0.82786]
[1750520226358,3.2078,2415.5,2415.4,1.52366]
[1750520226654,4.03562,2415.5,2415.4,0.6958]
[1750520227849,6.62955268,2415.5,2415.4,0.6958]
[1750520228051,2.06968,2415.4,2415.1,6.641]
[1750520228254,2.59393268,2415.3,2415.1,6.641]
[1750520228543,0.82793,2415.2,2415.1,6.641]
[1750520228948,2.59393268,2415.3,2415.0,0.71]
[1750520228949,0.82796,2415.1,2415.0,0.71]
[1750520229149,0.82796,2415.1,2415.0,7.351]
[1750520229553,0.82794,2415.2,2415.0,7.351]
[1750520229743,0.82794,2415.2,2415.1,0.82794]
[1750520230251,0.82796,2415.1,2415.0,7.351]
[1750520230448,0.82796,2415.1,2415.0,8.179]
[1750520231243,0.82796,2415.1,2415.0,7.351]
[1750520231443,0.82796,2415.1,2415.0,8.179]
[1750520231644,0.82796,2415.1,2415.0,7.351]
[1750520231844,0.82796,2415.1,2415.0,8.179]
[1750520232447,0.82796,2415.1,2415.0,7.351]
[1750520233257,0.82796,2415.1,2415.0,0.71]
[1750520235456,0.82796,2415.1,2414.6,3.8706]
[1750520235457,0.82809,2414.8,2414.7,7.3314]
[1750520235763,0.8281,2414.7,2414.6,6.641]
[1750520236860,0.8281,2414.7,2414.6,0.82813]
[1750520237066,0.82814,2414.6,2414.5,7.47014]
[1750520237252,0.82806,2414.8,2414.7,0.82809]
[1750520238460,0.8281,2414.7,2414.6,1.49092]
[1750520238663,0.8281,2414.7,2414.6,0.6628]
[1750520238959,0.8281,2414.7,2414.6,1.49091]
[1750520240060,0.8281,2414.7,2414.6,2.88201]
[1750520240765,3.2078,2415.2,2414.6,5.2617]
[1750520241069,0.82801,2415.0,2414.9,0.828]
[1750520241356,0.82801,2415.0,2414.9,7.47]
[1750520241965,0.82801,2415.0,2414.9,8.1445]
[1750520243561,0.82801,2415.0,2414.9,7.3165]
[1750520246357,0.82801,2415.0,2414.9,8.14453]
[1750520246557,0.82801,2415.0,2414.9,7.3165]
[1750520251558,0.82801,2415.0,2414.9,8.14453]
[1750520251959,0.82801,2415.0,2414.9,7.3165]
[1750520252364,0.82794,2415.2,2415.1,0.82794]
[1750520252567,0.82789,2415.3,2415.2,0.82793]
[1750520252759,0.82787,2415.4,2415.3,0.82788]
[1750520252962,0.82787,2415.4,2415.3,2.21268]
[1750520253162,0.82784,2415.5,2415.4,0.82784]
[1750520253362,3.2078,2415.6,2415.4,0.82784]
[1750520253363,3.2078,2415.6,2415.5,0.6651]
[1750520253557,3.2078,2415.6,2415.5,2.80102]
[1750520253762,3.27703268,2416.1,2415.6,0.82779]
[1750520253763,0.82775,2415.8,2415.6,0.82779]
[1750520253962,0.82776,2415.7,2415.6,1.3081]
[1750520254163,0.82775,2415.8,2415.6,1.3081]
[1750520254468,0.82775,2415.8,2415.7,6.602]
[1750520254766,0.82776,2415.7,2415.6,1.3081]
[1750520255062,0.82776,2415.7,2415.6,7.9091]
[1750520255269,0.82776,2415.7,2415.6,8.73689]
[1750520255466,0.82775,2415.8,2415.7,0.82776]
[1750520255670,0.82772,2415.9,2415.7,2.13586]
[1750520255865,3.2078,2416.3,2416.2,0.82758]
[1750520256064,3.2078,2416.3,2416.2,7.42858]
[1750520256258,3.2078,2416.8,2416.2,9.8088]
[1750520256464,0.82752,2416.4,2416.3,0.6643]
[1750520256770,0.82759,2416.2,2416.0,1.53224]
[1750520257070,0.82762,2416.1,2416.0,0.7046]
[1750520257269,0.82761,2416.2,2416.0,8.13325]
[1750520257464,2.59393268,2416.4,2416.0,8.13325]
[1750520257668,0.82762,2416.1,2416.0,7.3056]
[1750520258768,0.82762,2416.1,2416.0,7.3046]
[1750520259464,0.82762,2416.1,2416.0,0.7046]
[1750520259867,5.80173268,2416.2,2416.0,6.6]
[1750520260073,2.23412,2416.1,2416.0,6.6]
[1750520261371,0.82769,2415.9,2415.8,6.6]
[1750520261672,0.82776,2415.7,2415.6,3.2078]
[1750520262374,0.82786,2415.4,2415.3,0.33046022]
[1750520262566,0.828,2415.0,2414.9,6.6]
[1750520262766,1.4255,2415.3,2414.9,7.42802]
[1750520262971,0.82799,2415.1,2414.9,7.42802]
[1750520263479,0.82799,2415.1,2415.0,0.828]
[1750520263771,0.82798,2415.1,2414.9,7.42803]
[1750520263969,0.828,2415.0,2414.9,6.6]
[1750520264168,0.82798,2415.1,2414.9,7.42802]
[1750520264474,0.82798,2415.1,2414.9,0.82802]
[1750520264779,0.82798,2415.1,2415.0,6.6]
[1750520265163,0.82798,2415.1,2414.9,0.82802]
[1750520265164,0.82803,2414.9,2414.8,0.6756]
[1750520265369,3.42196268,2414.9,2414.8,0.6756]
[1750520265676,0.82803,2414.9,2414.8,0.6756]
[1750520267171,0.82802,2415.0,2414.8,1.50365]
[1750520267675,0.82802,2415.0,2414.8,8.10465]
[1750520267870,0.82801,2415.0,2414.9,0.82803]
[1750520268378,0.82801,2415.0,2414.8,8.10464]
[1750520268673,0.82803,2414.9,2414.8,8.10464]
[1750520268867,0.82802,2415.0,2414.8,8.10464]
[1750520269070,0.82797,2415.1,2414.9,0.82801]
[1750520269264,0.82801,2415.0,2414.8,8.10464]
[1750520269463,0.82803,2414.9,2414.8,7.2766]
[1750520269667,1.2879,2415.3,2414.8,7.2766]
[1750520269975,0.82798,2415.1,2414.9,0.82802]
[1750520270172,0.82798,2415.1,2414.8,7.2766]
[1750520270469,2.11582,2415.3,2414.8,7.2766]
[1750520270670,1.2879,2415.3,2414.8,7.2766]
[1750520270980,0.82802,2415.0,2414.8,7.2766]
[1750520271169,0.82798,2415.1,2414.8,8.10465]
[1750520271678,0.82798,2415.1,2414.9,0.82803]
[1750520271974,1.2879,2415.3,2414.9,0.82803]
[1750520272174,0.82793,2415.2,2414.9,0.82803]
[1750520272375,1.2879,2415.3,2414.9,0.82803]
[1750520272564,0.82797,2415.1,2414.9,0.82803]
[1750520272767,0.82797,2415.1,2414.8,8.10464]
[1750520273576,0.82801,2415.0,2414.8,8.10464]
[1750520273781,0.82803,2414.9,2414.8,0.6756]
[1750520273977,0.82803,2414.9,2414.8,7.2766]
[1750520274580,1.48572,2415.0,2414.8,8.10466]
[1750520275373,0.6577,2415.0,2414.8,8.10466]
[1750520275572,1.4857,2415.0,2414.8,8.10466]
[1750520276170,0.82803,2414.9,2414.8,0.6756]
[1750520276375,0.82806,2414.8,2414.7,6.629]
[1750520276578,4.03586,2414.8,2414.7,6.629]
[1750520276975,0.82812,2414.7,2414.5,0.7009]
[1750520277280,3.2078,2414.8,2414.5,1.52905]
[1750520277581,4.03589,2414.8,2414.6,0.82813]
[1750520277777,0.8281,2414.7,2414.6,0.82813]
[1750520277984,0.8281,2414.7,2414.5,8.15805]
[1750520278385,0.8281,2414.7,2414.5,7.3299]
[1750520278577,0.8281,2414.7,2414.5,8.15805]
[1750520278778,0.82813,2414.6,2414.5,8.15805]
[1750520278985,0.82812,2414.7,2414.6,0.82813]
[1750520279584,4.03589,2414.8,2414.6,0.82813]
[1750520279785,0.82811,2414.7,2414.6,0.82812]
[1750520280179,0.82811,2414.7,2414.5,8.15804]
[1750520280583,0.82811,2414.7,2414.5,1.52904]
[1750520280779,2.07025,2414.7,2414.2,2.15336]
[1750520280979,0.82823,2414.4,2414.3,6.629]
[1750520281378,0.82827,2414.2,2414.1,1.47328]
[1750520282785,0.82826,2414.3,2414.2,0.82826]
[1750520283178,0.82827,2414.2,2414.1,0.645]
[1750520284375,0.82827,2414.2,2414.1,1.4733]
[1750520284577,0.82827,2414.2,2414.1,0.645]
[1750520284776,0.82827,2414.2,2414.1,1.4733]
[1750520285185,0.82827,2414.2,2414.1,0.645]
[1750520285893,0.82827,2414.2,2414.1,1.4733]
[1750520286189,5.2583,2414.5,2414.2,0.82827]
[1750520286190,0.82826,2414.3,2414.2,0.82827]
[1750520286682,3.8887,2414.5,2414.1,0.645]
[1750520286883,0.82821,2414.4,2414.3,0.82821]
[1750520287290,4.7169,2414.5,2414.4,0.8282]
[1750520287487,0.82821,2414.4,2414.3,0.82821]
[1750520289694,3.8887,2414.5,2414.4,0.8282]
[1750520289994,4.71687,2414.5,2414.4,0.8282]
[1750520290692,0.82821,2414.4,2414.3,0.82821]
[1750520290994,4.71688,2414.5,2414.4,0.8282]
[1750520291291,4.03597,2414.5,2414.4,6.63]
[1750520291692,0.82827,2414.3,2414.2,0.82826]
[1750520291888,0.82827,2414.3,2414.2,7.45826]
[1750520292284,0.82827,2414.3,2414.2,0.82826]
[1750520292584,0.82827,2414.2,2414.1,1.47329]
[1750520292792,0.82827,2414.2,2414.1,7.275]
[1750520293894,0.82827,2414.2,2414.1,8.1033]
[1750520294191,5.81342866,2414.5,2414.1,9.88062866]
[1750520294192,3.2078,2414.5,2414.1,9.88062866]
[1750520294394,3.2078,2414.5,2414.4,0.8282]
[1750520294598,3.2078,2414.5,2414.4,7.4592]
[1750520294895,3.2078,2414.5,2414.4,9.4602]
[1750520297190,4.03597,2414.5,2414.4,7.3426]
[1750520297396,4.03597,2414.5,2414.4,8.1698]
[1750520298295,0.82817,2414.5,2414.4,8.1698]
[1750520298490,0.82827,2414.2,2414.1,0.645]
[1750520301785,0.8283,2414.1,2414.0,6.63]
[1750520302289,3.4747,2414.3,2413.8,1.3154]
[1750520302593,0.82834,2414.0,2413.9,6.631]
[1750520303094,0.82837,2413.9,2413.8,1.3154]
[1750520303293,4.582,2414.2,2413.8,8.12618]
[1750520303498,0.82832,2414.1,2413.8,7.2978]
[1750520303795,0.82832,2414.1,2414.0,0.82834]
[1750520304494,3.2078,2414.2,2414.1,0.8283]
[1750520304693,4.03598,2414.5,2414.4,0.8282]
[1750520305495,3.2078,2414.5,2414.4,0.8282]
[1750520305692,4.03597,2414.5,2414.4,0.8282]
[1750520305898,4.03597,2414.5,2414.4,7.4712]
[1750520306092,4.03597,2414.5,2414.4,8.8194]
[1750520306398,3.2078,2414.5,2414.4,8.8194]
[1750520307100,4.03597,2414.5,2414.4,8.8194]
[1750520307297,3.2078,2414.5,2414.4,8.8194]
[1750520307994,3.2078,2414.8,2414.7,0.8281]
[1750520308303,3.2078,2414.8,2414.7,7.4711]
[1750520308793,0.82794,2415.2,2415.1,0.82796]
[1750520309000,0.828,2415.0,2414.9,0.82802]
[1750520309304,0.828,2415.0,2414.9,6.642]
[1750520309803,3.2078,2415.5,2415.4,0.82786]
[1750520309992,3.2078,2415.5,2415.4,7.46986]
[1750520310395,3.2078,2415.5,2415.1,27.21194789]
[1750520310396,3.2078,2415.5,2415.2,0.8279]
[1750520310598,4.03564,2415.5,2415.3,8.16848]
[1750520310799,3.2078,2415.5,2415.4,0.82786]
[1750520311702,4.03562,2415.5,2415.3,8.16848]
[1750520312702,4.03562,2415.5,2415.4,0.6859]
[1750520312902,0.82786,2415.4,2415.3,7.3406]
[1750520313803,4.03565,2415.5,2415.3,8.16849]
[1750520314107,0.82786,2415.4,2415.3,8.16849]
[1750520314296,4.03565,2415.5,2415.4,0.82786]
[1750520314606,3.2078,2415.5,2415.4,0.82786]
[1750520315105,4.03562,2415.5,2415.4,0.82786]
[1750520316207,3.2078,2415.5,2415.4,0.82786]
[1750520316701,3.2078,2415.5,2415.3,6.641]
[1750520317003,0.82786,2415.4,2415.3,6.641]
[1750520317506,0.82786,2415.4,2415.3,6.64]
[1750520317802,0.82786,2415.4,2415.2,6.64]
[1750520317803,0.82792,2415.3,2415.2,6.64]
[1750520318398,0.82793,2415.2,2415.1,0.6648]
[1750520318698,0.82793,2415.2,2415.1,7.3048]
[1750520321807,1.3042,2415.4,2415.1,6.641]
[1750520322006,0.82793,2415.2,2415.1,6.641]
[1750520324099,0.82793,2415.2,2414.8,0.6729]
[1750520324100,0.82803,2414.9,2414.8,6.641]
[1750520324498,4.03583,2414.9,2414.8,6.641]
[1750520326215,0.82806,2414.8,2414.7,0.8281]
[1750520326910,4.03583,2414.9,2414.8,0.82806]
[1750520327916,0.82807,2414.8,2414.7,0.82808]
[1750520328108,4.03585,2414.9,2414.8,0.82806]
[1750520329811,0.82811,2414.7,2414.6,0.82811]
[1750520330208,0.82813,2414.6,2414.5,7.46914]
[1750520331108,0.8282,2414.4,2414.3,4.70611]
[1750520331414,0.8282,2414.4,2414.3,8.13934]
[1750520331611,0.8282,2414.4,2414.3,7.3111]
[1750520331814,1.5287,2414.4,2414.3,7.3111]
[1750520332011,1.5287,2414.4,2414.3,6.641]
[1750520332208,2.9353,2414.4,2414.3,6.641]
[1750520333305,2.1071,2414.4,2413.9,48.3642]
[1750520333612,0.8283,2414.1,2414.0,6.641]
[1750520334008,2.1619,2414.1,2414.0,6.641]
[1750520334515,0.82834,2414.0,2413.9,55.0052]
[1750520334916,0.82834,2414.0,2413.9,0.6642]
[1750520335407,0.82841,2413.8,2413.7,26.29244]
[1750520335614,0.82841,2413.8,2413.7,6.642]
[1750520336108,0.82841,2413.8,2413.7,7.47044]
[1750520336315,0.82841,2413.8,2413.7,6.642]
[1750520336507,5.0,2413.8,2413.3,3.2078]
[1750520336707,5.0,2413.8,2412.9,0.24520762]
[1750520336708,4.86505922,2413.5,2412.9,0.24520762]
[1750520336914,0.82859,2413.3,2413.1,0.82863]
[1750520337219,2.0465,2413.4,2412.9,0.24520762]
[1750520337408,4.564,2413.2,2412.9,0.24520762]
[1750520338013,4.564,2413.2,2412.9,1.07390762]
[1750520338014,5.39262,2413.2,2412.9,1.07390762]
[1750520338322,3.2078,2413.2,2412.9,0.24520762]
[1750520338521,3.2078,2413.2,2413.0,0.82866]
[1750520338816,0.6903,2413.4,2413.3,0.82858]
[1750520339013,3.2078,2413.6,2413.1,6.641]
[1750520339222,3.2078,2413.6,2413.5,0.82851]
[1750520339915,3.2078,2413.6,2413.3,0.7033]
[1750520340218,3.2078,2413.6,2412.9,0.24520762]
[1750520340411,3.2078,2413.6,2413.4,0.82855]
[1750520340611,3.2078,2413.6,2413.3,0.82856]
[1750520340813,3.2078,2413.6,2413.5,0.82851]
[1750520341016,3.2078,2413.6,2413.0,2.0197]
[1750520341321,4.0363,2413.6,2413.2,0.82859]
[1750520341523,1.3458,2413.5,2413.3,0.82858]
[1750520341720,1.3458,2413.5,2413.3,0.82856]
[1750520341923,0.6858,2413.4,2413.3,0.82856]
[1750520342224,0.6858,2413.4,2413.0,1.53196]
[1750520342408,3.2078,2413.2,2413.1,0.82864]
[1750520345521,3.2078,2413.9,2413.8,0.82841]
[1750520346618,3.2078,2414.2,2414.1,0.8283]
[1750520347020,0.6705,2414.5,2414.4,0.8282]
[1750520350631,3.2078,2414.6,2414.2,0.6475]
[1750520350632,3.2078,2414.6,2414.5,0.82817]
[1750520350816,0.8281,2414.7,2414.6,0.82812]
[1750520351021,2.20478,2414.8,2414.6,0.82812]
[1750520351322,2.20479,2414.8,2414.6,0.82812]
[1750520351626,11.7258,2414.9,2414.8,0.82806]
[1750520351627,10.5258,2414.9,2414.8,0.82806]
[1750520352533,3.8838,2414.9,2414.4,7.3222]
[1750520352726,6.13665,2414.9,2414.7,0.82808]
[1750520353024,3.2078,2414.9,2414.8,7.47006]
[1750520353225,4.4078,2415.6,2415.2,0.8279]
[1750520353423,4.6326,2415.6,2414.9,1.4118]
[1750520353622,0.82787,2415.4,2415.2,0.8279]
[1750520353828,0.82787,2415.4,2415.3,0.82789]
[1750520354028,0.82785,2415.5,2415.3,0.82789]
[1750520354217,0.82785,2415.5,2415.4,0.82786]
[1750520354218,1.4248,2415.5,2415.4,0.82786]
[1750520354622,3.2078,2415.6,2415.4,0.82786]
[1750520355031,0.82782,2415.5,2415.4,0.82786]
[1750520355221,0.82786,2415.4,2415.3,0.82787]
[1750520355424,0.82786,2415.4,2415.3,0.82789]
[1750520356327,0.82786,2415.4,2415.2,0.82791]
[1750520357034,0.82785,2415.5,2415.3,0.82789]
[1750520357437,0.82788,2415.4,2415.2,0.82791]
[1750520357638,4.5097,2415.6,2415.1,0.82796]
[1750520357838,0.82785,2415.5,2415.0,6.641]
[1750520358037,0.82786,2415.4,2415.2,0.8279]
[1750520359530,1.3796,2415.5,2415.0,6.64]
[1750520359733,3.2078,2415.6,2415.3,0.82787]
[1750520359929,0.82783,2415.5,2415.3,0.82787]
[1750520360139,4.5874,2415.6,2415.0,10.09693]
[1750520360339,3.2078,2415.6,2415.5,0.82782]
[1750520360533,4.0356,2415.6,2415.4,0.82786]
[1750520360838,4.03561,2415.6,2415.4,0.82786]
[1750520361034,4.03561,2415.6,2415.1,1.3823]
[1750520361240,3.2078,2415.6,2415.5,0.82782]
[1750520362341,3.2078,2415.6,2415.5,1.47622]
[1750520364054,0.82777,2415.7,2415.5,1.47622]
[1750520364253,0.82777,2415.7,2415.6,0.82779]
[1750520364653,0.82777,2415.7,2415.5,1.4762]
[1750520364846,0.82776,2415.7,2415.5,0.6484]
[1750520365151,1.51895,2415.8,2415.6,0.82777]
[1750520365345,0.82776,2415.7,2415.5,1.4762]
[1750520365544,1.51893,2415.8,2415.6,0.82779]
[1750520366455,0.82776,2415.7,2415.6,0.82779]
[1750520366851,0.82776,2415.7,2415.5,0.6484]
[1750520367046,0.82776,2415.7,2415.6,0.82779]
[1750520367247,0.82776,2415.7,2415.5,1.4762]
[1750520367448,0.82776,2415.7,2415.6,0.82779]
[1750520367857,1.51894,2415.8,2415.7,0.82776]
[1750520368154,1.51894,2415.8,2415.5,0.6484]
[1750520368155,0.6912,2415.8,2415.5,0.6484]
[1750520368353,0.82779,2415.6,2415.5,1.47621]
[1750520368748,0.82777,2415.7,2415.6,0.82777]
[1750520369660,1.51893,2415.8,2415.7,0.82776]
[1750520370556,3.2078,2415.9,2415.8,0.82772]
[1750520371859,0.33865322,2416.1,2416.0,0.82765]
[1750520372156,0.6537,2416.2,2416.1,0.82762]
[1750520372748,3.2078,2416.3,2416.2,0.82758]
[1750520374958,0.82763,2416.1,2416.0,0.82764]
[1750520375156,0.82761,2416.2,2416.1,0.82762]
[1750520375459,8.90043922,2416.3,2416.1,0.82762]
[1750520375661,8.07285922,2416.3,2416.2,0.82758]
[1750520376054,3.2078,2416.3,2416.2,0.82758]
[1750520378059,3.2078,2416.3,2416.2,2.17908]
[1750520378857,4.03521,2416.7,2416.6,0.82745]
[1750520379547,3.2078,2416.7,2416.6,0.82745]
[1750520379749,8.07285922,2416.7,2416.3,0.6782]
[1750520379947,0.82752,2416.4,2416.3,0.6782]
[1750520380150,0.82749,2416.5,2416.3,0.6782]
[1750520380460,4.03524,2416.7,2416.5,0.82747]
[1750520380665,0.82745,2416.6,2416.5,0.82747]
[1750520380861,3.2078,2416.7,2416.6,0.82745]
[1750520382062,3.2078,2416.7,2416.5,0.82746]
[1750520382262,0.82748,2416.5,2416.4,0.8275]
[1750520382461,0.82746,2416.6,2416.5,0.82747]
[1750520382657,4.03522,2416.7,2416.6,0.82745]
[1750520383057,0.82745,2416.6,2416.4,2.2448]
[1750520383666,0.82745,2416.6,2416.5,0.82748]
[1750520383962,4.03524,2416.7,2416.6,0.82745]
[1750520385256,4.03524,2416.7,2416.6,1.49395]
[1750520385760,4.03524,2416.7,2416.6,0.6665]
[1750520387257,3.2078,2416.7,2416.6,1.49395]
[1750520388068,3.2078,2416.7,2416.6,2.88275]
[1750520388262,3.2078,2417.0,2416.9,0.82735]
[1750520388855,3.2078,2417.0,2416.9,7.58635]
[1750520389056,0.82723,2417.3,2416.9,7.58635]
[1750520389057,0.82723,2417.3,2417.1,0.82724]
[1750520389266,3.2078,2417.4,2417.3,0.82721]
[1750520389468,3.2078,2417.4,2417.2,0.6919]
[1750520389968,3.2078,2417.8,2417.7,0.82707]
[1750520390157,3.9119,2418.2,2418.0,0.82697]
[1750520390359,3.9119,2418.2,2418.1,0.82693]
[1750520390558,6.758,2418.6,2418.1,0.82693]
[1750520390559,3.2078,2418.6,2418.4,0.82681]
[1750520390759,3.2078,2418.6,2418.1,6.758]
[1750520390967,3.2078,2418.6,2418.5,0.8268]
[1750520391559,3.2078,2418.6,2418.2,1.3223]
[1750520391762,3.2078,2418.6,2418.5,0.8268]
[1750520392558,3.2078,2418.6,2418.2,1.3223]
[1750520392764,3.2078,2418.6,2418.1,7.58292]
[1750520392971,0.82687,2418.3,2418.1,7.58292]
[1750520393165,0.82685,2418.4,2418.2,0.8269]
[1750520393771,1.414,2418.5,2418.2,0.8269]
[1750520393972,0.82685,2418.4,2418.2,0.8269]
[1750520394365,3.2078,2418.6,2418.1,6.756]
[1750520394566,4.03458,2418.6,2418.4,0.82682]
[1750520395069,3.2078,2418.6,2418.5,0.8268]
[1750520395462,3.9119,2419.1,2418.3,3.2078]
[1750520395665,4.73852,2419.1,2418.9,0.82666]
[1750520396062,3.2078,2419.1,2419.0,0.82663]
[1750520396473,3.2078,2419.1,2419.0,7.58163]
[1750520396769,4.03439,2419.1,2419.0,7.58163]
[1750520396968,3.2078,2419.1,2419.0,7.58163]
[1750520397564,4.03439,2419.1,2418.9,6.755]
[1750520397764,3.2078,2419.1,2419.0,0.6877]
[1750520397974,4.03439,2419.1,2419.0,0.6877]
[1750520398171,3.2078,2419.1,2419.0,0.6877]
[1750520398365,4.03439,2419.1,2419.0,0.6877]
[1750520399069,0.82673,2418.7,2418.4,0.6994]
[1750520399261,0.82673,2418.7,2418.5,8.30047]
[1750520399672,0.82673,2418.7,2418.6,0.82676]
[1750520399871,6.87405922,2419.0,2418.5,8.30048]
[1750520400074,0.82674,2418.7,2418.5,8.30048]
[1750520400373,0.82671,2418.8,2418.7,0.82673]
[1750520400573,0.82671,2418.8,2418.6,0.82675]
[1750520400974,0.82671,2418.8,2418.7,0.82673]
[1750520401173,2.009,2419.0,2418.5,7.4737]
[1750520401174,0.82676,2418.7,2418.5,7.4737]
[1750520401375,2.009,2419.0,2418.6,0.82676]
[1750520401680,0.82669,2418.9,2418.8,0.8267]
[1750520401974,0.82669,2418.9,2418.7,0.82671]
[1750520402480,0.8267,2418.8,2418.7,0.82671]
[1750520402777,0.82673,2418.7,2418.5,7.4737]
[1750520402977,2.009,2419.0,2418.6,0.82675]
[1750520403176,0.82671,2418.8,2418.7,0.82672]
[1750520403575,0.82673,2418.7,2418.6,0.82674]
[1750520404181,0.82668,2418.9,2418.8,0.82669]
[1750520404679,0.8267,2418.8,2418.7,0.82671]
[1750520404990,0.82666,2418.9,2418.5,8.8329]
[1750520405178,0.8267,2418.8,2418.7,0.82671]
[1750520405579,1.53575,2419.0,2418.9,0.82666]
[1750520405773,0.82674,2418.7,2418.6,0.82674]
[1750520405970,0.82672,2418.8,2418.7,0.82672]
[1750520406687,0.82674,2418.7,2418.6,0.82674]
[1750520407679,0.82672,2418.8,2418.7,0.82673]
[1750520408283,0.82674,2418.7,2418.6,0.82674]
[1750520409174,1.3112,2418.9,2418.5,0.6877]
[1750520409175,0.82676,2418.6,2418.5,0.6877]
[1750520409375,0.82676,2418.6,2418.5,6.784]
[1750520409574,0.7091,2419.0,2418.5,6.784]
[1750520409881,4.03442,2419.1,2418.6,4.6122]
[1750520410081,0.82663,2419.0,2418.9,0.82665]
[1750520410279,0.82673,2418.8,2418.7,0.8267]
[1750520410479,0.82669,2418.9,2418.8,0.82669]
[1750520410679,0.82673,2418.8,2418.7,0.82672]
[1750520410879,3.2078,2419.1,2418.6,5.3036]
[1750520411080,0.82667,2418.9,2418.8,0.82667]
[1750520411480,0.82673,2418.8,2418.7,0.82672]
[1750520411681,0.82673,2418.7,2418.6,6.13034]
[1750520411884,0.82673,2418.7,2418.6,3.2078]
[1750520412187,0.82673,2418.7,2418.6,9.9918]
[1750520417380,0.82673,2418.7,2418.6,6.784]
[1750520418486,0.82683,2418.4,2418.3,4.03465]
[1750520418793,0.82683,2418.4,2418.3,10.81865]
[1750520419189,0.82682,2418.5,2418.4,0.82682]
[1750520421493,0.82679,2418.6,2418.5,0.82678]
[1750520423090,0.82683,2418.4,2418.3,9.9918]
[1750520424287,0.82683,2418.4,2418.3,10.81867]
[1750520424486,1.97253399,2418.4,2418.3,9.9918]